Cogmind - Beta 14 @@@ ROGUE MODE // 2025.03.04 @ 00:59:22 Player: pragma Result: Destroyed by G-34 Mercenary with Small Laser Performance ------------- Evolutions (1) 500 Regions Visited (3) 600 Robots Destroyed (24) 120 Value Destroyed (377) 377 Prototype IDs (1) 20 Alien Tech Used (0) 0 Bonus (0) 0 TOTAL SCORE: 1617 Bonus ------- None Cogmind --------- Core Integrity 0/400 Matter 269/300 Energy 100/100 System Corruption 0% Temperature Hot (222) Movement Core (50) Location -9/Materials Parts ------- > --- POWER (1) -------- (None) > --- PROPULSION (3) --- (None) > --- UTILITY (3) ------ Signal Interpreter > --- WEAPON (2) ------- Hammer > --- INVENTORY (5) ---- Improved Heat Sink Small Storage Unit Weight Redist. System ECM Suite Peak State ------------ > --- POWER ------------ Light Nuclear Core > --- PROPULSION ------- Aluminum Leg Carbon-fiber Leg > --- UTILITY ---------- Improved Heat Sink Small Storage Unit Sensor Array > --- WEAPON ----------- Particle Gun Beamcaster > --- INVENTORY -------- Flight Unit Flight Unit Flight Unit Signal Interpreter ECM Suite Grenade Launcher Hammer [Rating: 19] Favorites ----------- Power Light Nuclear Core Engine Light Ion Engine Power Core Light Nuclear Core Propulsion Aluminum Leg Leg Aluminum Leg Wheel Compact Wheel Flight Unit Flight Unit Utility Small Storage Unit Device Structural Scanner Storage Small Storage Unit Processor Signal Interpreter Protection Insulated Plating Weapon Medium Laser Energy Gun Medium Laser Ballistic Gun Light Assault Rifle Launcher Grenade Launcher Impact Weapon Hammer Build | -11 -10 -10 -9 ------- Run | Yrd Mat Min Mat Slots Evolved 2 | . . . 2 Power . | . . . . Propulsion 1 | . . . 1 Utility 1 | . . . 1 Weapon . | . . . . Parts Attached 35 | 5 6 10 14 Power 5 | 1 2 2 . Engine 4 | 1 2 1 . Core 1 | . . 1 . Reactor . | . . . . Propulsion 13 | 2 . 5 6 Treads . | . . . . Leg 6 | 2 . 4 . Wheel 1 | . . 1 . Hover . | . . . . Flight 6 | . . . 6 Utility 8 | . 2 1 5 Device 4 | . 1 1 2 Storage 1 | . 1 . . Processor 1 | . . . 1 Hackware . | . . . . Protection 2 | . . . 2 Artifact . | . . . . Weapon 9 | 2 2 2 3 Energy Gun 5 | 2 . 2 1 Energy Cannon . | . . . . Ballistic Gun 2 | . 2 . . Ballistic Cannon . | . . . . Launcher 1 | . . . 1 Special Weapon . | . . . . Impact Weapon 1 | . . . 1 Slashing Weapon . | . . . . Piercing Weapon . | . . . . Special Melee Weapon . | . . . . Unidentified Prototypes 1 | . . . 1 Parts Lost 9 | . . 1 8 Power 1 | . . . 1 Propulsion 5 | . . 1 4 Utility 2 | . . . 2 Weapon 1 | . . . 1 Highest Loss Streak 8 | . . 1 8 To Critical Strikes . | . . . . Average Slot Usage (%) 95 | . 97 98 88 Engine 5 | . 14 1 . Core 6 | . . 11 10 Leg 21 | . 28 27 3 Flight 7 | . . . 27 Device 12 | . 11 13 12 Storage 10 | . 13 14 1 Processor 2 | . . . 11 Protection 2 | . . . 7 Energy Gun 13 | . 14 19 4 Ballistic Gun 8 | . 13 8 . Impact Weapon 2 | . . . 9 Peak Build Rating 19 | 5 7 18 19 Average Rating 10 | 4 6 13 12 On Entrance 7 | . 5 7 18 Naked Turns . | . . . . Heaviest Build 19 | 7 13 19 19 Greatest Support 25 | 20 20 25 25 Greatest Overweight (x) 2 | . . . 2 Average Overweight (x) . | . . . . Largest Inventory Capacity 8 | 5 8 8 8 Average Capacity 7 | 5 7 8 5 Most Carried 8 | 5 8 8 7 Average Carried 6 | 3 6 7 4 Final Capacity 8 | 5 8 8 5 Final Carried 8 | 4 8 8 4 Class Distribution -------------------- 54% | Scavenger-Mutant 45% | Mutant Dominant Class ---------------- Mutant | -10/Materials Scavenger-Mutant | -10/Mines Scavenger-Mutant | -9/Materials Resources | -11 -10 -10 -9 ----------- Run | Yrd Mat Min Mat Matter Collected 555 | 250 62 174 69 Remotely . | . . . . Salvage Created 636 | 93 220 140 183 Parts 31 | 1 17 9 4 Haulers Intercepted . | . . . . Recyclers Shooed 2 | . 1 . 1 Parts Field Recycled . | . . . . Retrieved Matter . | . . . . Parts Self-Destructed . | . . . . Prevented . | . . . . Kills | -11 -10 -10 -9 ------- Run | Yrd Mat Min Mat Combat Hostiles Destroyed 19 | . 10 4 5 Melee 2 | . . . 2 Guns 14 | . 10 4 . Classes Destroyed 6 | 1 4 . 1 Worker 2 | . 1 . 1 Recycler 2 | 1 . . 1 Watcher 1 | . 1 . . Swarmer 14 | . 9 1 4 Grunt 4 | . 1 3 . Sentry 1 | . . . 1 Best Kill Streak 5 | 1 5 2 4 Combat Bots Only 4 | . 4 2 4 Max Kills in Single Turn 2 | 1 2 1 1 Gunslinging 1 | . 1 . . Exploded . | . . . . Melee 1 | . . . 1 Uniques/NPCs Destroyed . | . . . . Combat | -11 -10 -10 -9 -------- Run | Yrd Mat Min Mat Hostile Shots Fired 169 | . 42 37 90 Missed 45 | . 11 10 24 Damage Taken 1531 | . 290 348 893 Core 534 | . 49 80 405 Absorbed by Shields . | . . . . Core Remaining (%) 74 | 100 . 48 . Volleys Fired 52 | 3 25 15 9 Largest 2 | 2 2 2 2 Hottest 140 | 100 100 140 140 Shots Fired 97 | 6 50 30 11 Gun 97 | 6 50 30 11 Cannon . | . . . . Launcher . | . . . . Special . | . . . . Kinetic 37 | . 13 24 . Thermal 60 | 6 37 6 11 Explosive . | . . . . Electromagnetic . | . . . . Robot Hit Streak 7 | 4 6 7 4 Robot Miss Streak 4 | 1 4 3 2 Penetration Max . | . . . . Secondary Targets 1 | . 1 . . Max Gunslinging Chain 1 | . 1 . . Shots Hit Robots 68 | 5 24 20 19 Core Hits 28 | 2 14 9 3 Critical Kills 1 | . . . 1 Critical Parts Destroyed 1 | . . . 1 Critical Strikes 9 | . 4 1 4 Burn 7 | . 4 1 2 Smash 2 | . . . 2 Melee Attacks 17 | . . . 17 Impact 17 | . . . 17 Slashing . | . . . . Piercing . | . . . . Sneak Attacks 2 | . . . 2 Combat Hostiles . | . . . . Follow-up Attacks . | . . . . Damage Inflicted 1108 | 61 303 229 515 Guns 734 | 61 303 229 141 Cannons . | . . . . Explosions . | . . . . Melee 374 | . . . 374 Ramming . | . . . . Kinetic 230 | . 56 174 . Thermal 504 | 61 247 55 141 Explosive . | . . . . Electromagnetic . | . . . . Impact 374 | . . . 374 Slashing . | . . . . Piercing . | . . . . Highest Corruption . | . . . . Average Corruption . | . . . . Corruption Purged . | . . . . Corruption Blocked . | . . . . Overload Shots . | . . . . Overflow Damage 108 | . . . 108 Projectiles . | . . . . Explosions . | . . . . Melee 108 | . . . 108 Knockbacks 2 | . . . 2 Impact 2 | . . . 2 Kinetic . | . . . . Secondary . | . . . . Self-Inflicted Damage . | . . . . Shots . | . . . . Rammed . | . . . . Targets Rammed . | . . . . Kicked . | . . . . Crushed . | . . . . Highest Temperature 238 | 78 238 93 206 Average Temperature 68 | 33 84 24 78 Received Heat Transfer 597 | . 12 198 387 Siege Activations . | . . . . Robots Corrupted 3 | . . . 3 Combat Hostiles 3 | . . . 3 Parts Fried 5 | . . . 5 Impact Corruptions 7 | . . . 7 Robots Melted . | . . . . Combat Hostiles . | . . . . Parts Melted 3 | . 2 . 1 Heat Transferred 1850 | 185 1036 185 444 Parts Sabotaged . | . . . . Parts Stolen . | . . . . Parts Stripped . | . . . . Power Chain Reactions . | . . . . Alert | -11 -10 -10 -9 ------- Run | Yrd Mat Min Mat Peak Influence 400 | 5 366 110 400 Initial 70 | . 3 70 25 Average 126 | 2 172 88 142 Maximum Alert Level 2 | . 1 . 2 Low Security (%) 79 | 100 68 100 61 Level 1 20 | . 31 . 38 Level 2 . | . . . . Level 3 . | . . . . Level 4 . | . . . . Level 5 . | . . . . High Security . | . . . . Max Security . | . . . . Squads Dispatched . | . . . . Investigation . | . . . . Extermination . | . . . . Reinforcement . | . . . . Assault . | . . . . Garrison . | . . . . Intercept . | . . . . Searches Triggered . | . . . . Construction Impeded . | . . . . Haulers Reinforced . | . . . . Active Scanning Responses . | . . . . Cargo Convoy Interrupts . | . . . . Stealth | -11 -10 -10 -9 --------- Run | Yrd Mat Min Mat Distress Signals 3 | . 3 . . Communications Jammed . | . . . . Distress Signals . | . . . . Times Spotted 48 | . 19 4 25 Peak Tracking Total 19 | . 4 2 19 Tactical Retreats 10 | . 5 . 5 Traps | -11 -10 -10 -9 ------- Run | Yrd Mat Min Mat Traps Triggered 1 | . 1 . . Indirectly . | . . . . Trap Hack Attempts . | . . . . Triggered . | . . . . Disarmed . | . . . . Reprogrammed . | . . . . Reused . | . . . . Traps Extracted . | . . . . Installed . | . . . . Triggered . | . . . . Machines | -11 -10 -10 -9 ---------- Run | Yrd Mat Min Mat Machines Disabled . | . . . . Max in Single Turn . | . . . . Machines Repaired . | . . . . Machines Dismantled . | . . . . Machines Sabotaged . | . . . . Overloaded Fab Kills . | . . . . Hacking | -11 -10 -10 -9 --------- Run | Yrd Mat Min Mat Machines Accessed . | . . . . Terminals . | . . . . Fabricators . | . . . . Repair Stations . | . . . . Recycling Units . | . . . . Scanalyzers . | . . . . Garrison Access . | . . . . Total Hacks . | . . . . Successful . | . . . . Failed . | . . . . Catastrophic . | . . . . Database Lockouts . | . . . . Manual . | . . . . Terminals . | . . . . Fabricators . | . . . . Repair Stations . | . . . . Recycling Units . | . . . . Scanalyzers . | . . . . Garrison Access . | . . . . Terminal Hacks . | . . . . Fabricator Hacks . | . . . . Repair Station Hacks . | . . . . Recycling Unit Hacks . | . . . . Scanalyzer . | . . . . Garrison Access Hacks . | . . . . Unauthorized Hacks . | . . . . Terminals . | . . . . Fabricators . | . . . . Repair Stations . | . . . . Recycling Units . | . . . . Scanalyzers . | . . . . Garrison Access . | . . . . Data Cores Recovered . | . . . . Used . | . . . . Hacking Detections . | . . . . Full Trace Events . | . . . . Feedback Events . | . . . . Feedback Blocked . | . . . . Robot Schematics Acquired . | . . . . Robots Built . | . . . . Authchips . | . . . . Time . | . . . . Total Robot Build Rating . | . . . . Part Schematics Acquired . | . . . . Parts Built . | . . . . Authchips . | . . . . Time . | . . . . Total Part Build Rating . | . . . . Parts Repaired . | . . . . Time . | . . . . Parts Recycled . | . . . . Recycled Matter . | . . . . Retrieved Matter . | . . . . Retrieved Components . | . . . . Parts Scanalyzed . | . . . . Part Schematics Acquired . | . . . . Parts Damaged . | . . . . Bothacking | -11 -10 -10 -9 ------------ Run | Yrd Mat Min Mat Used RIF Installer . | . . . . Robots Hacked . | . . . . Non-combat . | . . . . Combat . | . . . . Robot Hacks Applied . | . . . . Relay Couplers Released . | . . . . Fabnet Peak Effective % . | . . . . Robots Rewired . | . . . . Allies Hacked . | . . . . Hacks Repelled . | . . . . Allies | -11 -10 -10 -9 -------- Run | Yrd Mat Min Mat Total Allies . | . . . . Largest Group . | . . . . Highest-Rated Group . | . . . . Highest-Rated Ally . | . . . . Total Orders . | . . . . Ally Attacks . | . . . . Total Damage . | . . . . Kills . | . . . . Allies Corrupted . | . . . . Allies Melted . | . . . . Intel | -11 -10 -10 -9 ------- Run | Yrd Mat Min Mat Robot Analysis Total . | . . . . Derelict Logs Recovered 1 | . . 1 . Drone Launches . | . . . . Drone Recoveries . | . . . . Exploration | -11 -10 -10 -9 ------------- Run | Yrd Mat Min Mat Turns Passed 1664 | 114 604 539 407 Spaces Moved 1326 | 59 369 379 519 Core 10 | 9 . . 1 Treads . | . . . . Legs 818 | 50 369 378 21 Wheels 1 | . . 1 . Hover . | . . . . Flight 497 | . . . 497 Fastest Speed 34 | 50 120 100 34 Average Speed 87 | 109 120 119 39 Slowest Speed 200 | 120 120 120 200 Overloaded Moves . | . . . . Propulsion Burnouts . | . . . . Robots Hopped . | . . . . Cave-ins Triggered . | . . . . Exploration Rate (%) 43 | 5 73 62 32 Regions Visited 3 Branch Regions 1 Pre-discovered Areas . | . . . . Known Exits Taken . | . . . . Unknown Exits Taken 3 | 1 1 1 . Scrap Searched 2 | . . 2 . Spaces Dug . | . . . . Terrain Destroyed . | . . . . Melee . | . . . . Projectile . | . . . . AOE . | . . . . Terrain Rammed . | . . . . Walls Destroyed . | . . . . Machines Disabled . | . . . . Actions | -11 -10 -10 -9 --------- Run | Yrd Mat Min Mat Total 1708 | 102 483 438 685 Wait 218 | 28 65 14 111 Move 1323 | 58 368 378 519 Hop . | . . . . Pick Up 37 | 8 12 10 7 Fast Attach 4 | 1 1 2 . Attach 20 | 4 4 4 8 Detach . | . . . . Swap 11 | . 1 4 6 Drop 26 | . 7 11 8 Fire 52 | 3 25 15 9 Melee 17 | . . . 17 Ram . | . . . . Kick . | . . . . Crush . | . . . . Escape Stasis . | . . . . Rewire . | . . . . Trap . | . . . . Miscellaneous . | . . . . Route ------- -11/Scrapyard -10/Materials (discovered 3 exits: [*Mat] / [*Min x2]) -10/Mines (discovered 2 exits: [*Mat] / [*Exi]) -9/Materials History --------- Turn | Location | Event 7 | -11/Scrapyard | Discovered new exit (range 15) 115 | -11/Scrapyard | Entered Materials 304 | -10/Materials | Build established: Mutant 405 | -10/Materials | Discovered new exit (range 6) 637 | -10/Materials | Discovered new exit (range 16) 701 | -10/Materials | Discovered new exit (range 15) 719 | -10/Materials | Entered Mines 802 | -10/Mines | Met a Derelict bent on vengeance 851 | -10/Mines | Deemed a non-threat by the Exiles lab entrance 851 | -10/Mines | Discovered new exit (range 5) 999 | -10/Mines | Learned Materials emergency access door positions 1040 | -10/Mines | Build established: Scavenger-Mutant 1041 | -10/Mines | Discovered new exit (range 9) 1106 | -10/Mines | Found a hidden stash of uninstalled traps 1189 | -10/Mines | Core integrity fell below 50% 1258 | -10/Mines | Entered Materials 1258 | -9/Materials | Evolved 2 slots: Propulsion x1, Utility x1 1658 | -9/Materials | Core integrity fell below 50% 1664 | -9/Materials | Core integrity fell below 20% 1665 | -9/Materials | Destroyed by G-34 Mercenary with Small Laser Last Messages --------------- 01644_ Flight Unit destroyed. 01650_ Nuclear Reactor explodes. 01650_ Flight Unit destroyed. 01650_ Insulated Plating destroyed. 01653_ The unstable cave ceiling collapses. 01653_ U-05 Engineer builds a Wall. 01654_ Lgt. Nuclear Core destroyed. 01654_ G-47 Trooper suffers critical hit (Burn). 01654_ U-05 Engineer builds a Wall. 01655_ Flight Unit destroyed. 01657_ U-05 Engineer builds a Wall. 01660_ U-05 Engineer lays Concrete. 01661_ Imp. Medium Laser destroyed. 01661_ U-05 Engineer lays Concrete. 01663_ M-13 Machinist repairs G-34 Mercenary. 01663_ Sensor Array destroyed. 01663_ Critical hit (Burn: +37). 01663_ U-05 Engineer lays Concrete. 01665_ M-13 Machinist repairs Ion Engine. 01665_ U-05 Engineer lays Concrete. Map ----- +----------------------------------------------------+ | ??????????????????????????????????????????????# ## | | ??????????????????????????????????????????????# ## | | ??????????????????????????????????????????????# ## | | ??????????????????????????????????????????????# ## | | ??????????????????????????????????????????????# ## | | ??????????????????????????????????????????????# ## | | ??????????????????????????????? ??????????????# ## | | ??????????????????????????????? ???????#+???# ## | | ??????????????????????????????# #??????# ???# ## | | ?????????????????????????????? ####### #??# | | ??????????????????????????????? #??# | | ??????????????????????????????? T #??# | | ????????????????????########??? #### | | ????????????????????# T #???? ??# | | ???????????????????## #?###+#??# | | ???????????????????# #? ?# | | ??????????????????## # "" ?# | | ?????????????????## # " # ##### | | ?????????????????# # "" # ##+#####?? | | ?????????????????# # ?# # #?? | | ?????????????????# # """??# # #?? | | ?????????????????# u# """??# + #?? | | ?????????????????# # ""???# # #?? | | ??????????????????# #????????# # #?? | | ??????????????????# g########## # #?? | | ???????????????##### # @g ########?? | | ???????????????# # gggg a#????????? | | ???????????????# #gmg""" """"" ##???????? | | ???????????????# ! # g""" """"" #???????? | | ???????????????# # g""" ^ ^""""" #???????? | | ???????????????# # """"" ######### | | ???????????????# / """"" | | ############### # """"" | | + ## """"" | | # ## | | # ## ##+###### | | ###+########+######### ##"T"###/####??????? | | ??????????? ??????# ### ##"""# #??????? | | ????????? """ ???##+####+####### """#??????? | | ????????# "R #??# # """#??????? | | ????????# """ |! #??# # """#??????? | | ????????# |! #??# # #??????? | | ????????# |! #??# # #??????? | | ????????? #??# ########??????? | | ????????? #??# #?????????????? | | ?????????##########??###############?????????????? | | | | | | | | | +----------------------------------------------------+ Best States ------------- Heat Dissipation 39 Energy Generation 14 Energy Capacity 160 Matter Stores 300 Matter Capacity 300 Sight Range 16 Robot Scan Range 14 Terrain Scan Density 10 Additional Mass Support 6 Armor Coverage 150 Resistance: EM 15 Evasion (%) 63 Item Schematics ----------------- None Robot Schematics ------------------ None Fabricated ------------ Nothing Alien Tech Used ----------------- None Achievements -------------- Power Corrupts Challenges ------------ None Game ------ Seed MicroSmallRouter Manual? 0 Play Time 00:27:14 Cumulative 8.0 hours Start 2025.03.04 @ 00:31:08 End 2025.03.04 @ 00:59:22 Sessions 1 Manual Loads 0 Difficulty Rogue Special Mode None Game No. 7 Rogue 7 Adventurer 0 Explorer 0 Win Type - Total 0 Types 0/0/0/0/0/0/0/0/0 Lore% 4 Gallery% 11 Achievement% 11 Wizard Run 0 Options --------- Layout 1 ASCII 0 Keyboard 0 Movement Mouse Keybinds 0 Fullscreen 1 Font 32/SmallcapsGlow Map View 50x35 Zoom Use 0% Tactical HUD 1 Map Filters NONE Filters NONE Steam 1 RUN: 096602a0-ae64-4f6a-9af8-7fe988fe5f72